bitfinex/quotes_ETHUSD_20250906
["timestamp","ask_amount","ask_price","bid_price","bid_amount"]
[1757199909708,70.22764389,4275.9,4275.8,0.00400001]
[1757199909912,71.58877171,4275.9,4275.8,0.00400001]
[1757199911387,72.81877171,4275.9,4275.8,0.00400001]
[1757199911886,69.96427171,4275.9,4275.8,0.00400001]
[1757199912414,72.73097171,4275.9,4275.8,0.00400001]
[1757199912623,73.96097171,4275.9,4275.8,0.00400001]
[1757199914519,75.19097171,4275.9,4275.8,0.00400001]
[1757199915081,80.65297171,4275.9,4275.8,0.00400001]
[1757199915430,2.33874362,4275.8,4275.7,1e-08]
[1757199915603,8.70959832,4275.7,4275.6,1e-08]
[1757199915925,8.70959832,4275.7,4275.3,0.004]
[1757199915926,6.254,4275.4,4275.3,0.004]
[1757199916132,16.57110565,4275.4,4275.3,0.004]
[1757199916424,19.91088278,4275.4,4275.3,0.004]
[1757199916623,22.24984521,4275.4,4275.3,0.004]
[1757199916827,8.59301714,4275.3,4274.8,0.029]
[1757199917030,13.44009289,4275.3,4274.8,0.029]
[1757199917244,16.49729289,4275.3,4274.8,0.029]
[1757199917425,19.99520086,4275.3,4274.8,0.029]
[1757199918848,21.22520086,4275.3,4274.8,0.029]
[1757199920321,22.45520086,4275.3,4274.8,0.029]
[1757199921009,22.54887735,4275.3,4274.8,0.029]
[1757199921855,23.77887735,4275.3,4274.8,0.029]
[1757199923475,25.00887735,4275.3,4274.8,0.029]
[1757199925090,26.23887735,4275.3,4274.8,0.029]
[1757199927100,27.46887735,4275.3,4274.8,0.029]
[1757199927987,27.46844378,4275.3,4275.1,0.004]
[1757199928374,28.69844378,4275.3,4275.1,0.004]
[1757199929678,29.92844378,4275.3,4275.1,0.004]
[1757199931082,31.15844378,4275.3,4275.1,0.004]
[1757199931276,24.22424378,4275.3,4275.1,0.004]
[1757199931580,28.39174378,4275.3,4275.2,0.2974]
[1757199931823,28.10124378,4275.3,4275.2,0.004]
[1757199932037,28.39174378,4275.3,4275.2,0.004]
[1757199932181,31.15844378,4275.3,4275.2,0.004]
[1757199932729,32.38844378,4275.3,4275.2,0.004]
[1757199933567,36.82414718,4275.3,4275.2,0.004]
[1757199934493,38.05414718,4275.3,4275.2,0.004]
[1757199934842,37.62454718,4275.3,4275.2,0.004]
[1757199934988,38.05414718,4275.3,4275.2,0.004]
[1757199935878,39.28414718,4275.3,4275.2,0.004]
[1757199937529,40.51414718,4275.3,4275.2,0.004]
[1757199939109,41.74414718,4275.3,4275.2,0.004]
[1757199940598,42.97414718,4275.3,4275.2,0.004]
[1757199942010,44.20414718,4275.3,4275.2,0.004]
[1757199943555,45.43414718,4275.3,4275.2,0.004]
[1757199944868,46.66414718,4275.3,4275.2,0.004]
[1757199945212,46.66064485,4275.3,4275.2,0.004]
[1757199946060,46.66072655,4275.3,4275.2,0.004]
[1757199946282,47.89072655,4275.3,4275.2,0.004]
[1757199947525,49.12072655,4275.3,4275.2,0.004]
[1757199948973,50.35072655,4275.3,4275.2,0.004]
[1757199950771,51.58072655,4275.3,4275.2,0.004]
[1757199952329,52.81072655,4275.3,4275.2,0.004]
[1757199953836,54.04072655,4275.3,4275.2,0.004]
[1757199955375,55.27072655,4275.3,4275.2,0.004]
[1757199956887,56.50072655,4275.3,4275.2,0.004]
[1757199958785,57.73072655,4275.3,4275.2,0.004]
[1757199960197,58.96072655,4275.3,4275.2,0.004]
[1757199961481,60.19072655,4275.3,4275.2,0.004]
[1757199963250,61.98772655,4275.3,4275.2,0.004]
[1757199963485,63.21772655,4275.3,4275.2,0.004]
[1757199965216,64.44772655,4275.3,4275.2,0.004]
[1757199966510,65.67772655,4275.3,4275.2,0.004]
[1757199966718,65.67773981,4275.3,4275.2,0.004]
[1757199968301,66.90773981,4275.3,4275.2,0.004]
[1757199969710,68.13720201,4275.3,4275.2,0.004]
[1757199971827,69.36720201,4275.3,4275.2,0.004]
[1757199973732,67.59720201,4275.3,4275.2,0.004]
[1757199973922,70.59720369,4275.3,4275.2,0.004]
[1757199974118,77.19760369,4275.3,4275.2,0.004]
[1757199974333,8.59334545,4274.7,4273.5,2.2798]
[1757199974535,13.32174647,4274.7,4273.5,2.2798]
[1757199974719,13.61304647,4274.7,4273.5,2.2798]
[1757199975044,16.50824647,4274.7,4273.5,2.2798]
[1757199975342,17.73824647,4274.7,4273.5,2.2798]
[1757199975523,20.00615444,4274.7,4273.5,2.2798]
[1757199976391,20.00615444,4274.7,4273.5,2.37349558]
[1757199976592,21.23615444,4274.7,4273.5,2.37349558]
[1757199976938,21.23615444,4274.7,4273.5,2.2798]
[1757199977490,21.23540386,4274.7,4273.8,0.11869558]
[1757199977886,22.46540386,4274.7,4273.8,0.11869558]
[1757199978599,22.46540386,4274.7,4274.1,0.004]
[1757199979205,23.69535245,4274.7,4274.1,0.004]
[1757199980535,24.92535245,4274.7,4274.1,0.004]
[1757199981954,26.15535245,4274.7,4274.1,0.004]
[1757199983508,27.38535245,4274.7,4274.1,0.004]
[1757199985440,28.61535245,4274.7,4274.1,0.004]
[1757199986977,29.84535245,4274.7,4274.1,0.004]
[1757199987532,29.37045245,4274.7,4274.1,0.004]
[1757199987962,29.84535245,4274.7,4274.1,0.004]
[1757199988169,31.07535245,4274.7,4274.1,0.004]
[1757199988364,31.07528931,4274.7,4274.1,0.004]
[1757199989728,32.30528931,4274.7,4274.1,0.004]
[1757199990031,29.11878931,4274.7,4274.1,0.004]
[1757199990234,29.11878931,4274.7,4274.6,0.2937]
[1757199990490,33.55449271,4274.7,4274.6,0.2937]
[1757199990633,40.87579271,4274.7,4274.1,0.004]
[1757199990994,6.13178333,4273.9,4273.8,0.3187]
[1757199991193,17.09202262,4273.9,4273.8,0.3187]
[1757199991338,17.09202262,4273.9,4273.8,0.025]
[1757199991768,17.85822262,4273.9,4273.8,0.025]
[1757199992089,24.99311828,4273.9,4273.8,0.025]
[1757199992261,22.6616834,4273.9,4273.8,0.025]
[1757199992769,30.80639026,4273.9,4273.8,0.025]
[1757199993589,31.96399972,4273.9,4273.8,0.025]
[1757199994086,33.19399972,4273.9,4273.8,0.025]
[1757199995147,33.19399972,4273.9,4273.8,0.029]
[1757199995555,34.42399972,4273.9,4273.8,0.029]
[1757199997459,35.65399972,4273.9,4273.8,0.029]
[1757199998846,36.88399972,4273.9,4273.8,0.029]
[1757200000354,38.11399972,4273.9,4273.8,0.029]
[1757200001681,39.34399972,4273.9,4273.8,0.029]
[1757200002202,41.80599972,4273.9,4273.8,0.029]
[1757200003143,43.03599972,4273.9,4273.8,0.029]
[1757200004444,44.26599972,4273.9,4273.8,0.029]
[1757200006107,45.49599972,4273.9,4273.8,0.029]
[1757200006601,45.49566346,4273.9,4273.8,0.029]
[1757200007245,46.72566346,4273.9,4273.8,0.029]
[1757200009209,47.95566346,4273.9,4273.8,0.029]
[1757200010348,49.18566346,4273.9,4273.8,0.029]
[1757200012310,50.41566346,4273.9,4273.8,0.029]
[1757200014407,51.64566346,4273.9,4273.8,0.029]
[1757200015930,52.87566346,4273.9,4273.8,0.029]
[1757200017399,54.10603529,4273.9,4273.8,0.029]
[1757200019113,8.59383808,4273.8,4273.3,0.004]
[1757200019458,20.75174634,4273.8,4273.3,0.004]
[1757200019809,21.18204634,4273.8,4273.3,0.004]
[1757200020642,23.15044634,4273.8,4273.3,0.004]
[1757200022666,24.38044634,4273.8,4273.3,0.004]
[1757200024162,21.29934634,4273.8,4273.3,0.004]
[1757200024309,30.4653592,4273.8,4273.3,0.004]
[1757200024625,33.6650592,4273.8,4273.3,0.004]
[1757200025429,34.8950592,4273.8,4273.3,0.004]
[1757200025657,3.254,4273.4,4273.3,0.004]
[1757200025969,19.58993471,4273.4,4273.3,0.004]
[1757200026270,19.58993471,4273.4,4272.8,0.025]
[1757200026271,8.59433092,4272.9,4272.8,1e-08]
[1757200026568,20.71417491,4272.9,4272.8,1e-08]
[1757200026782,23.91387491,4272.9,4272.8,1e-08]
[1757200026931,27.00718288,4272.9,4272.8,1e-08]
[1757200027276,0.792,4272.3,4271.6,2.7077]
[1757200027459,0.792,4271.9,4271.6,2.7077]
[1757200027634,7.18785587,4271.9,4271.8,2.07266364]
[1757200027835,9.52873463,4271.9,4271.8,2.07266364]
[1757200028043,12.81131176,4271.9,4271.8,2.07266364]
[1757200028241,14.04131176,4271.9,4271.8,2.07266364]
[1757200029653,15.27131176,4271.9,4271.8,1.79036364]
[1757200029856,15.57561176,4271.9,4271.8,1.79036364]
[1757200030418,18.48311176,4271.9,4271.8,1.79036364]
[1757200030634,18.61342928,4271.9,4271.8,1.79036364]
[1757200031078,19.84342928,4271.9,4271.8,1.79036364]
[1757200031438,19.71311176,4271.9,4271.8,1.79036364]
[1757200031897,3.13315278,4271.4,4271.3,0.004]
[1757200032043,12.60346564,4271.4,4271.3,0.004]
[1757200032390,13.10652941,4271.4,4271.3,0.3127]
[1757200032596,14.33652941,4271.4,4271.3,0.3127]
[1757200033994,15.56652941,4271.4,4271.3,0.3127]
[1757200034542,17.36666599,4271.4,4271.3,0.3127]
[1757200035398,18.59666599,4271.4,4271.3,0.3127]
[1757200036897,19.82666599,4271.4,4271.3,0.3127]
[1757200038235,21.05666599,4271.4,4271.3,0.3127]
[1757200038852,24.05666599,4271.4,4271.3,0.004]
[1757200039656,25.28666599,4271.4,4271.3,0.004]
[1757200041748,26.51666599,4271.4,4271.3,0.004]
[1757200043066,27.74666599,4271.4,4271.3,0.004]
[1757200044374,28.97666599,4271.4,4271.3,0.004]
[1757200045658,30.20666599,4271.4,4271.3,0.3127]
[1757200046213,30.2027026,4271.4,4271.3,0.3127]
[1757200047110,31.4327026,4271.4,4271.3,0.3127]
[1757200048086,20.16225316,4271.4,4271.3,0.3127]
[1757200048285,24.04025316,4271.4,4271.3,0.3127]
[1757200048487,25.27025316,4271.4,4271.3,0.3127]
[1757200049721,30.86356602,4271.4,4271.3,0.3127]
[1757200049900,32.09356602,4271.4,4271.3,0.3127]
[1757200050114,34.23945112,4271.4,4271.3,0.3127]
[1757200050671,15.99,4271.4,4271.3,3.0271]
[1757200050871,17.5912,4271.4,4271.3,3.0271]
[1757200051303,18.8212,4271.4,4271.3,3.0271]
[1757200051528,19.6132,4271.4,4271.3,3.0271]
[1757200051831,18.8212,4271.4,4271.3,3.0271]
[1757200052030,14.9402,4271.4,4271.3,3.40010935]
[1757200052232,14.9402,4271.4,4271.3,5.74131694]
[1757200052516,16.1702,4271.4,4271.3,8.74131694]
[1757200052812,20.0512,4271.4,4271.3,8.74131694]
[1757200053921,20.0522,4271.4,4271.3,8.74131694]
[1757200054152,21.2822,4271.4,4271.3,8.74131694]
[1757200055821,22.5122,4271.4,4271.3,8.74131694]
[1757200057126,23.7422,4271.4,4271.3,8.74131694]
[1757200058324,24.9722,4271.4,4271.3,8.74131694]
[1757200059829,26.2022,4271.4,4271.3,8.74131694]
[1757200061354,27.4322,4271.4,4271.3,8.74131694]
[1757200062490,28.6622,4271.4,4271.3,8.74131694]
[1757200064158,29.8922,4271.4,4271.3,8.74131694]
[1757200064298,29.8932,4271.4,4271.3,8.74131694]
[1757200065595,31.1232,4271.4,4271.3,8.74131694]
[1757200065832,31.1232,4271.4,4271.3,6.46151694]
[1757200067198,32.3532,4271.4,4271.3,6.46151694]
[1757200067962,28.4712,4271.4,4271.3,11.33591694]
[1757200068120,0.09922681,4271.4,4271.3,11.95975508]
[1757200068309,0.09922681,4271.4,4271.3,11.80363504]
[1757200068633,1.32922681,4271.4,4271.3,11.80363504]
[1757200069805,3.691,4271.9,4271.3,11.80363504]
[1757200070010,3.691,4271.9,4271.8,2.34093356]
[1757200070226,3.691,4271.9,4271.8,10.07973356]
[1757200070426,1e-08,4271.9,4271.8,10.07973356]
[1757200071636,1.23000001,4271.9,4271.8,10.07973356]
[1757200072637,1e-08,4271.9,4271.8,10.36906101]
[1757200072796,1e-08,4271.9,4271.8,10.07973356]
[1757200073002,1e-08,4271.9,4271.8,10.36906101]
[1757200076923,1.23000001,4271.9,4271.8,10.36906101]
[1757200077759,3.52500001,4271.9,4271.8,5.34093356]
[1757200078056,4.24990001,4271.9,4271.8,9.22293356]
[1757200078358,5.47990001,4271.9,4271.8,9.22293356]
[1757200078732,5.47990001,4271.9,4271.8,5.34093356]
[1757200078927,5.47990001,4271.9,4271.8,9.22293356]
[1757200079855,6.70990001,4271.9,4271.8,9.22293356]
[1757200081022,7.93990001,4271.9,4271.8,9.22293356]
[1757200081759,7.93990001,4271.9,4271.7,0.70265756]
[1757200081961,0.435,4271.8,4271.7,0.70265756]
[1757200082316,4.2499,4271.8,4271.7,0.70265756]
[1757200083736,5.4799,4271.8,4271.7,0.70265756]
[1757200085062,9.3639,4271.8,4271.7,0.70265756]
[1757200085266,10.5939,4271.8,4271.7,0.70265756]
[1757200085673,10.5939,4271.8,4271.3,3.004]
[1757200085875,2.73,4271.7,4271.3,0.004]
[1757200086242,0.2899,4271.4,4271.3,0.004]
[1757200086754,4.2499,4271.4,4271.3,0.004]
[1757200087938,5.4799,4271.4,4271.3,0.004]
[1757200089348,6.7099,4271.4,4271.3,0.004]
[1757200090687,7.9399,4271.4,4271.3,0.004]
[1757200092002,9.1699,4271.4,4271.3,0.004]
[1757200093664,10.3999,4271.4,4271.3,0.004]
[1757200095116,11.6299,4271.4,4271.3,0.004]
[1757200096801,12.8599,4271.4,4271.3,0.004]
[1757200098334,14.0899,4271.4,4271.3,0.004]
[1757200099609,15.3199,4271.4,4271.3,0.004]
[1757200101033,17.3419,4271.4,4271.3,0.004]
[1757200101176,19.26229,4271.4,4271.3,0.004]
[1757200102314,20.49229,4271.4,4271.3,0.004]
[1757200103349,18.5719,4271.4,4271.3,0.004]
[1757200103852,19.8019,4271.4,4271.3,0.004]
[1757200105138,21.0319,4271.4,4271.3,0.004]
[1757200106508,22.2619,4271.4,4271.3,0.004]
[1757200108710,23.4919,4271.4,4271.3,0.004]
[1757200110961,24.7219,4271.4,4271.3,0.004]
[1757200111478,25.9519,4271.4,4271.3,0.004]
[1757200112782,22.14,4271.4,4271.3,2.65050759]
[1757200112914,27.252,4271.4,4271.3,3.08400759]
[1757200113113,23.4868,4271.4,4271.3,5.65050759]
[1757200113351,23.4868,4271.4,4271.3,6.08400759]
[1757200114714,24.7168,4271.4,4271.3,6.08400759]
[1757200115365,24.7168,4271.4,4271.3,5.65050759]
[1757200116176,25.9468,4271.4,4271.3,5.65050759]
[1757200117523,27.1768,4271.4,4271.3,5.65050759]
[1757200119174,28.4068,4271.4,4271.3,5.65050759]
[1757200120480,20.01614442,4271.4,4271.3,5.65050759]
[1757200120684,4.92100001,4271.9,4271.7,2.34098836]
[1757200120883,4.92100001,4271.9,4271.8,9.94983356]
[1757200121223,1e-08,4271.9,4271.8,9.94983356]
[1757200121847,1.23000001,4271.9,4271.8,9.94983356]
[1757200122598,1e-08,4271.9,4271.8,9.94983356]
[1757200122744,1e-08,4271.9,4271.8,10.23916101]
[1757200123760,1e-08,4271.9,4271.8,9.94983356]
[1757200125237,0.001,4272.4,4272.3,2.34065959]
[1757200125427,0.001,4272.4,4272.3,9.22965959]
[1757200125627,0.001,4272.4,4272.3,9.95055959]
[1757200125905,2.2563,4274.1,4273.7,2.33989283]
[1757200126025,2.709,4274.1,4273.7,6.23189283]
[1757200126349,0.4537,4274.1,4273.7,9.40559742]
[1757200126534,8.7258,4273.8,4273.7,10.10803617]
[1757200126727,9.1785,4273.8,4273.7,10.10803617]
[1757200128154,10.4085,4273.8,4273.7,10.10803617]
[1757200129499,11.6385,4273.8,4273.7,10.10803617]
[1757200129631,8.635,4273.8,4273.7,10.10803617]
[1757200129832,8.635,4273.8,4273.7,10.39433617]
[1757200131091,9.865,4273.8,4273.7,10.39433617]
[1757200131594,9.865,4273.8,4273.7,10.10803617]
[1757200131792,6.69583621,4273.8,4273.7,10.39433617]
[1757200132280,7.92583621,4273.8,4273.7,10.39433617]
[1757200133877,9.15583621,4273.8,4273.7,10.39433617]
[1757200134565,1e-08,4273.9,4273.8,5.33983808]
[1757200134769,1e-08,4273.9,4273.8,6.06073808]
[1757200136525,1e-08,4273.9,4273.8,5.62613808]
[1757200136708,1.23000001,4273.9,4273.8,5.62613808]
[1757200137397,1.23000001,4273.9,4273.8,6.06073808]
[1757200138213,1.23000001,4273.9,4273.8,5.62613808]
[1757200138435,2.46000001,4273.9,4273.8,9.51513808]
[1757200138634,2.46000001,4273.9,4273.8,9.22883808]
[1757200139137,2.46100001,4273.9,4273.8,9.22883808]
[1757200139639,2.46100001,4273.9,4273.8,9.51513808]
[1757200139837,3.69100001,4273.9,4273.8,9.51513808]
[1757200141212,4.92100001,4273.9,4273.8,9.51513808]
[1757200142708,6.15100001,4273.9,4273.8,9.51513808]
[1757200144114,7.38100001,4273.9,4273.8,9.51513808]
[1757200145607,8.61100001,4273.9,4273.8,9.51513808]
[1757200146920,9.84100001,4273.9,4273.8,9.51513808]
[1757200148321,11.07100001,4273.9,4273.8,9.22883808]
[1757200148740,11.07100001,4273.9,4273.8,9.51513808]
[1757200149755,12.30100001,4273.9,4273.8,9.51513808]
[1757200151265,13.53100001,4273.9,4273.8,9.51513808]
[1757200152555,14.76100001,4273.9,4273.8,9.51513808]
[1757200153978,15.99100001,4273.9,4273.8,9.51513808]
[1757200155363,17.22100001,4273.9,4273.8,9.51513808]
[1757200155951,19.96040001,4273.9,4273.8,5.33983808]
[1757200156154,20.41880001,4273.9,4273.8,9.22483808]
[1757200156856,21.64880001,4273.9,4273.8,9.22483808]
[1757200158142,22.87880001,4273.9,4273.8,9.22883808]
[1757200159612,23.65040001,4273.9,4273.8,9.22883808]
[1757200160884,24.88040001,4273.9,4273.8,9.22883808]
[1757200161589,25.33880001,4273.9,4273.8,9.22883808]
[1757200162296,26.56880001,4273.9,4273.8,9.22883808]
[1757200163630,27.79880001,4273.9,4273.8,9.22883808]
[1757200164677,27.34040001,4273.9,4273.8,9.22883808]
[1757200164880,28.57040001,4273.9,4273.8,9.22883808]
[1757200166402,29.80040001,4273.9,4273.8,9.22883808]
[1757200167938,31.48880001,4273.9,4273.8,9.22883808]
[1757200168913,28.29100001,4273.9,4273.8,9.51753808]
[1757200169323,29.52100001,4273.9,4273.8,9.51753808]
[1757200170622,30.75100001,4273.9,4273.8,9.51753808]
[1757200171645,33.20540001,4273.9,4273.8,9.22883808]
[1757200172545,34.43540001,4273.9,4273.8,9.22883808]
[1757200173963,36.40880001,4273.9,4273.8,9.22883808]
[1757200174957,36.40880001,4273.9,4273.8,5.34383808]
[1757200175162,37.63880001,4273.9,4273.8,9.22583808]
[1757200176518,35.67100001,4273.9,4273.8,9.51453808]
[1757200177928,36.90100001,4273.9,4273.8,9.51453808]
[1757200179247,38.13100001,4273.9,4273.8,9.51453808]
[1757200179485,38.13100001,4273.9,4273.8,9.22583808]
[1757200180558,39.36100001,4273.9,4273.8,9.22583808]
[1757200181159,41.63400001,4273.9,4273.8,9.22583808]
[1757200182348,42.86400001,4273.9,4273.8,9.22583808]
[1757200182544,43.62970001,4273.9,4273.8,9.22583808]
[1757200184127,44.85970001,4273.9,4273.8,9.22583808]
[1757200185420,46.08970001,4273.9,4273.8,9.22583808]
[1757200187522,47.31970001,4273.9,4273.8,9.22583808]
[1757200188681,48.54970001,4273.9,4273.8,9.22583808]
[1757200190333,49.77970001,4273.9,4273.8,9.22583808]
[1757200192232,51.00970001,4273.9,4273.8,9.22583808]
[1757200194191,52.23970001,4273.9,4273.8,9.22583808]
[1757200194844,52.23970001,4273.9,4273.8,11.02183808]
[1757200196051,53.46970001,4273.9,4273.8,11.02183808]
[1757200197160,39.173,4273.9,4273.8,11.02183808]
[1757200197434,15.2202,4274.7,4274.5,2.3394549]
[1757200197600,14.761,4274.7,4274.5,6.50678235]
[1757200198007,0.3075,4274.6,4274.5,6.91969305]
[1757200198212,0.7667,4274.6,4274.5,6.91969305]
[1757200199095,1.9967,4274.6,4274.5,6.91969305]
[1757200200445,3.67713291,4274.7,4274.6,2.33940017]
[1757200200662,0.4592,4275.4,4274.6,2.33940017]
[1757200200663,2.273,4275.4,4274.7,5.33934545]
[1757200200792,2.273,4275.4,4274.9,5.339236]
[1757200200993,2.273,4275.4,4274.9,5.642536]
[1757200201627,1.231,4275.0,4274.9,6.3446361]
[1757200202104,1.256,4275.8,4275.5,2.33890773]
[1757200202416,1.256,4275.8,4275.5,11.01490773]
[1757200202735,3.0397,4275.6,4275.5,11.71691911]
[1757200203300,4.2697,4275.6,4275.5,11.71691911]
[1757200203953,4.2697,4275.6,4275.5,7.83691911]
[1757200204155,4.2697,4275.6,4275.5,11.71791911]
[1757200204656,5.4997,4275.6,4275.5,11.71791911]
[1757200205162,2.461,4275.6,4275.5,12.02121911]
[1757200205611,2.461,4275.6,4275.5,11.71791911]
[1757200206038,3.691,4275.6,4275.5,12.02121911]
[1757200206830,3.691,4275.6,4275.5,11.71791911]
[1757200207228,5.6867,4275.6,4275.5,11.71791911]
[1757200207451,5.6867,4275.6,4275.5,11.83471911]
[1757200207962,4.921,4275.6,4275.5,12.13801911]
[1757200208620,6.151,4275.6,4275.5,12.13801911]
[1757200209042,6.151,4275.6,4275.5,11.83471911]
[1757200209275,6.4575,4275.6,4275.5,11.83471911]
[1757200209477,6.9167,4275.6,4275.5,11.83471911]
[1757200209783,1.256,4275.8,4275.7,2.33879832]
[1757200209965,1.256,4275.8,4275.7,6.22079832]
[1757200210153,1.256,4275.8,4275.7,9.52639832]
[1757200210362,1.256,4275.8,4275.7,10.22837192]
[1757200211282,2.486,4275.8,4275.7,9.92277192]
[1757200211480,2.486,4275.8,4275.7,10.22837192]
[1757200212046,56.581,4275.9,4275.8,5.33874362]
[1757200212241,56.581,4275.9,4275.8,5.76114362]
[1757200212756,57.811,4275.9,4275.8,5.76114362]
[1757200213078,50.5868658,4275.9,4275.8,5.76114362]
[1757200214083,51.8168658,4275.9,4275.8,5.76114362]
[1757200215684,53.0468658,4275.9,4275.8,5.76114362]
[1757200217251,54.2768658,4275.9,4275.8,5.76114362]
[1757200218589,55.5068658,4275.9,4275.8,5.76114362]
[1757200219089,55.5068658,4275.9,4275.8,5.45554362]
[1757200219385,55.5068658,4275.9,4275.8,5.76114362]
[1757200219948,56.7368658,4275.9,4275.8,5.76114362]
[1757200221486,61.1111658,4275.9,4275.8,5.45554362]
[1757200221852,57.9668658,4275.9,4275.8,5.45554362]
[1757200223250,59.1968658,4275.9,4275.8,5.45554362]
[1757200223593,62.3411658,4275.9,4275.8,9.33554362]
[1757200224098,59.9526658,4275.9,4275.8,9.33554362]
[1757200224462,61.1826658,4275.9,4275.8,9.33554362]
[1757200225496,60.4268658,4275.9,4275.8,9.33554362]
[1757200225886,61.6568658,4275.9,4275.8,9.33554362]
[1757200227299,62.8868658,4275.9,4275.8,9.33554362]
[1757200227960,63.3417658,4275.9,4275.8,9.33454362]
[1757200228575,64.1168658,4275.9,4275.8,9.33454362]
[1757200228792,64.8726658,4275.9,4275.8,9.33454362]
[1757200228996,66.8062658,4275.9,4275.8,9.33454362]
[1757200229325,67.2611658,4275.9,4275.8,9.33854362]
[1757200229992,68.4911658,4275.9,4275.8,9.33854362]
[1757200230187,68.4911658,4275.9,4275.8,5.45954362]
[1757200230498,68.4911658,4275.9,4275.8,9.33854362]
[1757200230697,65.3468658,4275.9,4275.8,9.33854362]
[1757200230895,61.5640642,4275.9,4275.8,9.64414362]
[1757200231122,38.13,4275.9,4275.8,9.64414362]
[1757200231320,53.94529525,4276.6,4275.9,2.33868893]
[1757200231486,53.94529525,4276.6,4276.5,2.3383608]
[1757200231687,50.33439853,4276.6,4276.5,11.67059688]
[1757200231886,50.33439853,4276.6,4276.5,14.37899688]
[1757200232190,0.001,4277.1,4277.0,2.33808744]
[1757200232525,0.001,4277.1,4277.0,9.33588744]
[1757200232722,0.001,4277.1,4277.0,9.64148744]
[1757200232894,0.001,4277.1,4277.0,10.58106513]
[1757200235514,1.231,4277.1,4277.0,10.58106513]
[1757200236920,2.461,4277.1,4277.0,10.58106513]
[1757200237838,5.6053,4277.1,4277.0,3.70168956]
[1757200238000,2.461,4277.1,4277.0,9.927777]
[1757200238339,3.691,4277.1,4277.0,10.233377]
[1757200239555,4.921,4277.1,4277.0,10.233377]
[1757200240147,4.921,4277.1,4277.0,10.667977]
[1757200240860,1e-08,4277.1,4277.0,12.941777]
[1757200241062,3.69,4277.4,4277.3,2.33792345]
[1757200241357,3.69,4277.4,4277.3,9.64171959]
[1757200241544,3.69,4277.4,4277.3,9.93851959]
[1757200242576,4.92,4277.4,4277.3,9.93851959]
[1757200243988,6.15,4277.4,4277.3,9.93851959]
[1757200245244,7.38,4277.4,4277.3,9.93851959]
[1757200246082,7.381,4277.4,4277.3,9.93851959]
[1757200246658,8.611,4277.4,4277.3,9.93851959]
[1757200247400,8.611,4277.4,4277.3,9.93651959]
[1757200247902,8.611,4277.4,4277.3,10.05331959]
[1757200248102,9.841,4277.4,4277.3,10.05331959]
[1757200249360,11.071,4277.4,4277.3,10.05331959]
[1757200251001,12.301,4277.4,4277.3,10.05231959]
[1757200251367,12.301,4277.4,4277.3,9.75551959]
[1757200252219,12.301,4277.4,4277.3,5.86851959]
[1757200252519,13.531,4277.4,4277.3,9.75551959]
[1757200253789,14.761,4277.4,4277.3,9.75551959]
[1757200254805,14.761,4277.4,4277.3,5.86851959]
[1757200255005,14.761,4277.4,4277.3,9.75451959]
[1757200255206,15.991,4277.4,4277.3,9.75451959]
[1757200257052,17.221,4277.4,4277.3,9.75451959]
[1757200257824,17.221,4277.4,4277.3,9.75351959]
[1757200258451,18.451,4277.4,4277.3,9.75351959]
[1757200259736,19.681,4277.4,4277.3,9.75351959]
[1757200260370,22.3047,4277.4,4277.3,9.75251959]
[1757200260531,22.7329,4277.4,4277.3,9.75251959]
[1757200261226,23.9629,4277.4,4277.3,9.75251959]
[1757200262075,23.9629,4277.4,4277.3,2.45472345]
[1757200262235,23.9629,4277.4,4277.3,6.22192345]
[1757200262435,23.9629,4277.4,4277.3,9.22192345]
[1757200262635,25.1929,4277.4,4277.3,9.22192345]
[1757200262972,24.7647,4277.4,4277.3,9.22192345]
[1757200263182,18.4334327,4277.4,4277.3,9.22192345]
[1757200263381,18.4334327,4277.4,4277.3,9.51872345]
[1757200264387,19.6634327,4277.4,4277.3,9.22192345]
[1757200264758,1e-08,4277.4,4277.3,10.31072345]
[1757200266137,1e-08,4277.4,4277.3,10.74532345]
[1757200266540,30.65640395,4277.7,4277.6,2.33775949]
[1757200266740,15.29060265,4277.7,4277.6,9.52555949]
[1757200266981,15.29060265,4277.7,4277.6,10.31755949]
[1757200267155,15.29060265,4277.7,4277.6,11.01905543]
[1757200267358,15.29060265,4277.7,4277.6,10.72225543]
[1757200268258,43.80540751,4277.8,4277.7,36.12970484]
[1757200268585,43.80540751,4277.8,4277.7,41.51520128]
[1757200268751,43.45473867,4277.8,4277.7,41.51520128]
[1757200268948,43.10422389,4277.8,4277.7,42.21664473]
[1757200269152,43.10422389,4277.8,4277.7,39.94284473]
[1757200269347,42.75370911,4277.8,4277.7,37.85187574]
[1757200269848,42.75370911,4277.8,4277.7,36.03914829]
[1757200269849,43.15509433,4277.8,4277.7,36.03914829]
[1757200270053,43.15509433,4277.8,4277.7,9.93114829]
[1757200270054,45.42309433,4277.8,4277.7,9.93114829]
[1757200270748,42.40319433,4277.8,4277.7,10.24624829]
[1757200271190,43.63319433,4277.8,4277.7,10.24624829]
[1757200272158,43.63319433,4277.8,4277.7,10.04794829]
[1757200272382,44.86319433,4277.8,4277.7,43.90937574]
[1757200273162,44.86319433,4277.8,4277.7,43.62004829]
[1757200273450,40.04866537,4277.8,4277.7,44.34067574]
[1757200273713,40.04866537,4277.8,4277.7,46.60827574]
[1757200274028,37.1709332,4277.8,4277.7,46.60827574]
[1757200274330,18.54075366,4277.8,4277.7,16.60827574]
[1757200274477,18.54075366,4277.8,4277.7,16.31894829]
[1757200274671,18.54075366,4277.8,4277.7,46.31894829]
[1757200274672,6.88553074,4277.8,4277.7,46.31894829]
[1757200274935,6.88553074,4277.8,4277.7,46.60827574]
[1757200275105,156.211,4277.9,4277.8,2.33765019]
[1757200275279,156.211,4277.9,4277.8,38.59465019]
[1757200275480,124.95308649,4277.9,4277.8,41.60865019]
[1757200275672,124.95308649,4277.9,4277.8,41.89797764]
[1757200275883,124.60257171,4277.9,4277.8,41.89797764]
[1757200276325,124.25205693,4277.9,4277.8,41.89797764]
[1757200276533,52.49659931,4277.9,4277.8,41.89797764]
[1757200276745,52.49659931,4277.9,4277.8,42.89797764]
[1757200276746,53.37608453,4277.9,4277.8,42.89797764]
[1757200277100,53.02558121,4277.9,4277.8,42.89797764]